bitfinex-derivatives/quotes_SOLF0:USTF0_20260302
["timestamp","ask_amount","ask_price","bid_price","bid_amount"]
[1772493092401,10.243,87.858,87.811,16.58179743]
[1772493092603,3.31850304,87.85,87.811,16.58179743]
[1772493093905,13.56250304,87.85,87.811,6.33379743]
[1772493094310,3.31850304,87.85,87.811,6.33379743]
[1772493095804,3.31850304,87.85,87.811,16.58179743]
[1772493097507,3.31850304,87.83,87.787,6.33379743]
[1772493099012,3.31850304,87.86,87.804,6.33379743]
[1772493099404,3.31850304,87.86,87.81,3.31850304]
[1772493099710,3.31850304,87.86,87.811,6.33379743]
[1772493100214,3.31850304,87.86,87.82,10.247]
[1772493101012,3.31850304,87.86,87.814,6.33379743]
[1772493102215,3.31850304,87.86,87.823,10.247]
[1772493103915,10.242,87.865,87.823,10.247]
[1772493104114,16.53967311,87.865,87.823,10.247]
[1772493104309,3.31850304,87.86,87.823,10.247]
[1772493104511,6.29767311,87.864,87.829,10.246]
[1772493104708,6.29767311,87.863,87.814,6.33379743]
[1772493105018,6.29767311,87.859,87.821,10.247]
[1772493105216,3.31850304,87.85,87.8,9.65230047]
[1772493105413,3.31850304,87.85,87.801,6.33379743]
[1772493106011,16.54067311,87.859,87.801,6.33379743]
[1772493106416,6.29767311,87.859,87.825,10.247]
[1772493108614,6.29767311,87.859,87.832,10.246]
[1772493108819,10.241,87.874,87.829,6.17102837]
[1772493109214,6.10378442,87.859,87.824,10.247]
[1772493109816,6.10378442,87.859,87.784,14.07924344]
[1772493109817,6.10378442,87.849,87.791,6.17102837]
[1772493110015,6.10378442,87.829,87.771,6.17102837]
[1772493110622,6.10378442,87.829,87.788,10.251]
[1772493113116,6.10378442,87.829,87.788,6.17102837]
[1772493113316,6.10378442,87.829,87.757,20.51]
[1772493113317,3.31850304,87.87,87.811,6.17102837]
[1772493116025,3.31850304,87.86,87.822,10.247]
[1772493116225,5.92494078,87.859,87.815,10.248]
[1772493116520,3.31850304,87.85,87.815,10.248]
[1772493119020,5.95313722,87.858,87.815,10.248]
[1772493119224,10.243,87.855,87.815,10.248]
[1772493119925,10.243,87.855,87.811,6.17102837]
[1772493119926,10.244,87.85,87.811,6.17102837]
[1772493120225,13.56250304,87.85,87.811,6.17102837]
[1772493120920,19.49479702,87.85,87.808,10.249]
[1772493121227,9.25080499,87.84,87.801,10.25]
[1772493121727,5.93230195,87.838,87.794,10.25]
[1772493121922,3.31850304,87.83,87.794,10.25]
[1772493122317,10.246,87.837,87.8,10.25]
[1772493123327,5.93230195,87.838,87.793,10.251]
[1772493123328,10.246,87.83,87.793,10.251]
[1772493123528,13.56450304,87.83,87.783,6.17102837]
[1772493125226,13.56450304,87.83,87.786,10.251]
[1772493126335,5.87834318,87.809,87.767,20.25027181]
[1772493126627,5.87834318,87.799,87.753,6.17102837]
[1772493126828,3.31850304,87.79,87.748,10.256]
[1772493127526,5.86872538,87.779,87.727,14.07924344]
[1772493127723,3.31850304,87.78,87.73,3.31850304]
[1772493127923,3.31850304,87.78,87.731,6.17102837]
[1772493128335,3.31850304,87.79,87.731,6.17102837]
[1772493129328,13.56950304,87.79,87.745,10.256]
[1772493129726,19.45691898,87.79,87.737,10.257]
[1772493129932,9.14125239,87.824,87.731,6.17102837]
[1772493129933,3.31850304,87.78,87.731,6.17102837]
[1772493130431,10.252,87.777,87.731,6.17102837]
[1772493130635,3.31850304,87.77,87.731,6.17102837]
[1772493130825,5.825892,87.777,87.731,6.17102837]
[1772493131029,3.31850304,87.79,87.741,6.17102837]
[1772493131933,3.31850304,87.79,87.743,10.256]
[1772493132137,3.31850304,87.79,87.701,21.16525208]
[1772493132138,3.31850304,87.8,87.751,6.17102837]
[1772493132336,3.31850304,87.8,87.754,10.255]
[1772493132731,9.12780403,87.8,87.754,10.255]
[1772493133032,10.25,87.799,87.751,6.17102837]
[1772493135440,16.0912717,87.799,87.751,6.17102837]
[1772493135636,10.60814659,87.835,87.751,6.17102837]
[1772493135637,3.31850304,87.79,87.751,6.17102837]
[1772493136734,10.249,87.808,87.764,6.17102837]
[1772493136934,3.31850304,87.79,87.745,5.97077058]
[1772493138141,5.7599457,87.789,87.745,5.97077058]
[1772493139237,10.251,87.787,87.745,5.97077058]
[1772493139635,3.31850304,87.78,87.745,5.97077058]
[1772493140039,5.7599457,87.789,87.746,6.16808141]
[1772493141343,5.7599457,87.789,87.748,10.256]
[1772493143845,5.7599457,87.789,87.74,3.31850304]
[1772493143846,5.70569497,87.779,87.74,10.257]
[1772493144049,5.70569497,87.779,87.721,6.16808141]
[1772493144652,5.70300453,87.769,87.725,16.42608141]
[1772493144947,3.31850304,87.75,87.711,6.16808141]
[1772493145147,5.70301339,87.739,87.699,10.262]
[1772493145352,3.31850304,87.75,87.701,6.16808141]
[1772493145549,9.02151643,87.75,87.701,6.16808141]
[1772493146051,3.31850304,87.75,87.701,6.16808141]
[1772493146653,13.57450304,87.75,87.702,10.261]
[1772493146950,3.31850304,87.75,87.701,6.16808141]
[1772493147846,9.01486164,87.75,87.701,16.42908141]
[1772493148048,9.01486164,87.75,87.701,6.16808141]
[1772493148549,5.69702256,87.748,87.701,6.16808141]
[1772493148852,3.32673694,87.74,87.701,6.16808141]
[1772493149652,5.69702256,87.748,87.701,6.16808141]
[1772493149952,10.256,87.746,87.702,10.261]
[1772493150454,10.256,87.746,87.702,16.42908141]
[1772493150748,3.32673694,87.75,87.702,6.16808141]
[1772493150749,5.67785922,87.745,87.702,6.16808141]
[1772493150954,3.32673694,87.72,87.671,6.16808141]
[1772493151250,5.67785922,87.729,87.671,6.16808141]
[1772493152254,5.67785922,87.729,87.687,6.16808141]
[1772493152453,5.69890759,87.758,87.701,6.16808141]
[1772493152653,3.32673694,87.75,87.701,6.16808141]
[1772493153043,5.69188681,87.749,87.701,6.16808141]
[1772493153649,10.256,87.747,87.701,6.16808141]
[1772493153952,10.256,87.747,87.69,3.32673694]
[1772493153953,3.32673694,87.73,87.69,6.16808141]
[1772493154153,5.68496841,87.739,87.69,6.16808141]
[1772493154952,5.68496841,87.739,87.691,6.16808141]
[1772493155150,5.68496841,87.739,87.694,6.16808141]
[1772493155854,10.256,87.747,87.694,6.16808141]
[1772493156350,3.32673694,87.75,87.703,6.16808141]
[1772493157251,3.32673694,87.75,87.707,10.261]
[1772493158050,10.254,87.766,87.721,6.16808141]
[1772493158247,3.32673694,87.76,87.721,6.16808141]
[1772493159255,3.32673694,87.76,87.725,10.259]
[1772493160551,10.254,87.766,87.679,20.528]
[1772493160552,10.254,87.766,87.728,10.258]
[1772493161657,3.32673694,87.77,87.728,10.258]
[1772493163457,10.253,87.769,87.728,10.258]
[1772493164351,16.24844601,87.763,87.72,10.259]
[1772493164655,3.32673694,87.76,87.72,10.259]
[1772493164857,16.24844601,87.763,87.72,10.259]
[1772493165054,16.24844601,87.763,87.721,6.16808141]
[1772493165754,3.32673694,87.75,87.711,10.26]
[1772493167552,5.96232395,87.757,87.711,10.26]
[1772493167752,10.255,87.756,87.717,10.259]
[1772493168958,5.93052577,87.753,87.717,10.259]
[1772493170165,3.32673694,87.74,87.691,6.0720715]
[1772493170557,20.507,87.772,87.691,6.0720715]
[1772493170558,3.32673694,87.73,87.691,6.0720715]
[1772493170766,10.258,87.732,87.691,6.0720715]
[1772493170958,3.32673694,87.73,87.691,6.0720715]
[1772493171156,5.91531208,87.739,87.691,6.0720715]
[1772493171570,9.01903358,87.771,87.661,20.533]
[1772493171571,3.32673694,87.75,87.701,6.0720715]
[1772493171761,5.88593255,87.749,87.701,6.0720715]
[1772493171956,3.32673694,87.74,87.701,6.0720715]
[1772493173062,3.32673694,87.75,87.71,6.0720715]
[1772493173557,3.32673694,87.78,87.721,6.0720715]
[1772493173762,3.32673694,87.78,87.731,6.0720715]
[1772493174258,5.86322016,87.786,87.733,10.258]
[1772493174259,10.252,87.782,87.733,10.258]
[1772493174463,10.252,87.782,87.734,6.0720715]
[1772493175371,10.252,87.782,87.737,10.257]
[1772493175565,10.252,87.782,87.738,6.0720715]
[1772493176168,10.253,87.776,87.738,6.0720715]
[1772493176466,3.32673694,87.77,87.715,6.0720715]
[1772493176673,3.32673694,87.75,87.715,6.0720715]
[1772493176873,3.32673694,87.76,87.715,6.0720715]
[1772493177169,5.81612211,87.774,87.715,6.0720715]
[1772493177170,3.32673694,87.77,87.715,6.0720715]
[1772493177470,5.81563581,87.769,87.715,6.0720715]
[1772493178068,3.32673694,87.78,87.745,6.0720715]
[1772493179370,5.81968453,87.789,87.745,6.0720715]
[1772493179772,3.32673694,87.79,87.745,6.0720715]
[1772493179773,16.05765188,87.788,87.745,6.0720715]
[1772493180072,3.32673694,87.78,87.745,6.0720715]
[1772493180664,5.80665188,87.787,87.745,6.0720715]
[1772493181574,10.251,87.786,87.745,6.0720715]
[1772493182371,5.80665188,87.787,87.751,10.255]
[1772493183370,5.80665188,87.787,87.745,6.0720715]
[1772493184478,5.83262646,87.778,87.737,10.257]
[1772493185178,5.83262646,87.778,87.72,3.32673694]
[1772493185179,3.32673694,87.78,87.741,16.3290715]
[1772493185377,3.32673694,87.79,87.741,6.0720715]
[1772493185675,14.08365687,87.829,87.677,187.82802349]
[1772493185676,3.32673694,87.8,87.751,6.0720715]
[1772493185878,3.32673694,87.81,87.761,6.0720715]
[1772493186972,9.12154406,87.81,87.761,6.0720715]
[1772493187168,5.79480712,87.809,87.761,6.0720715]
[1772493187375,5.79480712,87.809,87.762,10.254]
[1772493187376,10.249,87.807,87.762,10.254]
[1772493188478,10.249,87.807,87.769,10.253]
[1772493191777,5.79480712,87.809,87.769,10.253]
[1772493191983,5.79480712,87.809,87.771,16.3250715]
[1772493192186,5.79480712,87.809,87.661,479.101]
[1772493192187,3.32673694,87.82,87.772,6.0720715]
[1772493192583,10.248,87.819,87.779,10.252]
[1772493194674,10.248,87.815,87.772,16.3250715]
[1772493194886,10.248,87.815,87.773,6.0720715]
[1772493195080,5.66308141,87.851,87.781,6.0720715]
[1772493195283,3.32673694,87.84,87.791,6.0720715]
[1772493195585,3.32673694,87.83,87.791,6.0720715]
[1772493196684,10.246,87.829,87.792,10.251]
[1772493196986,5.60502861,87.819,87.778,5.85596721]
[1772493198988,10.248,87.818,87.778,5.85596721]
[1772493199383,10.248,87.818,87.779,10.252]
[1772493201187,10.247,87.825,87.785,10.251]
[1772493202691,10.247,87.825,87.778,5.85596721]
[1772493203788,5.60443238,87.818,87.778,5.85596721]
[1772493204091,5.60443238,87.818,87.732,20.516]
[1772493204092,3.32673694,87.8,87.751,6.15887889]
[1772493204788,3.32673694,87.8,87.756,6.15887889]
[1772493205686,10.251,87.792,87.756,6.15887889]
[1772493207188,3.32673694,87.79,87.756,6.15887889]
[1772493207386,5.55449928,87.789,87.748,10.256]
[1772493207890,5.55449928,87.789,87.752,10.255]
[1772493210592,10.251,87.787,87.749,6.15887889]
[1772493210885,3.32306585,87.79,87.744,6.15887889]
[1772493210886,5.53468154,87.786,87.744,6.15887889]
[1772493211806,10.253,87.775,87.744,6.15887889]
[1772493212095,3.32306585,87.77,87.732,6.15887889]
[1772493213597,5.53544997,87.775,87.732,6.15887889]
[1772493213900,3.32306585,87.79,87.746,6.15887889]
[1772493214103,3.32306585,87.8,87.746,6.15887889]
[1772493215291,10.25,87.796,87.75,6.15887889]
[1772493215492,3.32306585,87.79,87.75,6.15887889]
[1772493216099,3.32306585,87.79,87.753,10.255]
[1772493216502,3.32306585,87.79,87.753,16.41387889]
[1772493219201,3.32306585,87.79,87.759,10.254]
[1772493220599,5.48825769,87.799,87.751,6.15887889]
[1772493221005,3.32306585,87.79,87.751,6.15887889]
[1772493221406,3.32306585,87.77,87.734,6.15887889]
[1772493221904,3.32306585,87.77,87.736,6.15887889]
[1772493223207,3.32306585,87.77,87.695,20.525]
[1772493223208,6.07973811,87.759,87.7,17.40230929]
[1772493223408,3.32306585,87.75,87.7,3.32306585]
[1772493223908,10.56328683,87.784,87.703,10.261]
[1772493223909,3.32306585,87.74,87.703,10.261]
[1772493224511,3.32306585,87.74,87.695,10.262]
[1772493225211,3.32306585,87.74,87.696,6.15887889]
[1772493225406,9.40280396,87.74,87.696,6.15887889]
[1772493225912,9.40280396,87.74,87.697,10.262]
[1772493226209,3.32306585,87.74,87.698,6.15887889]
[1772493226404,3.32306585,87.75,87.701,6.15887889]
[1772493227207,3.32306585,87.75,87.702,6.15887889]
[1772493228010,3.32306585,87.75,87.706,5.95491672]
[1772493228706,3.32306585,87.75,87.656,20.534]
[1772493228707,3.32306585,87.77,87.721,5.95491672]
[1772493228912,6.08159556,87.779,87.721,5.95491672]
[1772493229112,3.32306585,87.76,87.721,5.95491672]
[1772493231510,9.40466141,87.76,87.721,5.95491672]
[1772493231706,6.08159556,87.759,87.721,5.95491672]
[1772493235222,10.255,87.758,87.721,5.95491672]
[1772493235819,16.33659556,87.758,87.721,5.95491672]
[1772493236025,3.32306585,87.75,87.708,5.95491672]
[1772493237221,3.32306585,87.75,87.709,16.21491672]
[1772493238526,10.255,87.752,87.709,16.21491672]
[1772493238927,10.255,87.752,87.71,5.95491672]
[1772493240430,10.255,87.759,87.712,5.95491672]
[1772493240731,3.32306585,87.77,87.712,5.95491672]
[1772493241632,3.32306585,87.77,87.721,5.95491672]
[1772493241829,6.08159556,87.779,87.721,5.95491672]
[1772493242334,10.253,87.775,87.729,16.21291672]
[1772493244126,6.08159556,87.779,87.73,5.95491672]
[1772493244329,6.08159556,87.779,87.731,5.95491672]
[1772493246034,10.253,87.773,87.733,5.95491672]
[1772493246629,6.08159556,87.779,87.735,5.95491672]
[1772493247530,10.253,87.777,87.736,10.257]
[1772493248134,6.08159556,87.776,87.735,5.95491672]
[1772493249335,10.253,87.774,87.735,5.95491672]
[1772493249933,10.253,87.774,87.735,16.21191672]
[1772493250340,10.253,87.774,87.735,5.95491672]
[1772493250638,3.32306585,87.77,87.735,5.95491672]
[1772493250833,6.08159556,87.792,87.741,5.95491672]
[1772493251032,3.32306585,87.78,87.741,5.95491672]
[1772493251434,6.08159556,87.779,87.741,5.95491672]
[1772493251942,6.08159556,87.769,87.731,10.258]
[1772493253235,10.254,87.768,87.731,10.258]
[1772493253636,10.254,87.768,87.728,5.95491672]
[1772493253833,6.08159556,87.756,87.712,5.95491672]
[1772493255137,6.08159556,87.756,87.721,5.95491672]
[1772493256235,10.254,87.761,87.722,16.21391672]
[1772493256442,10.254,87.761,87.723,5.95491672]
[1772493256739,10.255,87.759,87.725,10.258]
[1772493257237,10.256,87.745,87.71,5.84969859]
[1772493257640,5.57235061,87.745,87.698,5.73587208]
[1772493257832,159.442,87.804,87.695,477.31467807]
[1772493257833,5.57235061,87.728,87.695,477.31467807]
[1772493258342,3.32306585,87.74,87.705,5.73587208]
[1772493258534,5.57235061,87.739,87.695,477.31467807]
[1772493258737,3.32306585,87.73,87.695,477.31467807]
[1772493258937,5.57235061,87.729,87.695,477.31467807]
[1772493259243,5.57235061,87.729,87.676,5.73587208]
[1772493260344,10.258,87.728,87.686,10.263]
[1772493262437,5.57235061,87.729,87.688,15.99887208]
[1772493263842,10.258,87.728,87.688,5.73587208]
[1772493269544,5.57235061,87.741,87.701,5.73587208]
[1772493271446,10.257,87.742,87.703,5.73587208]
[1772493272447,10.257,87.742,87.704,15.99687208]
[1772493273349,10.257,87.742,87.705,5.73587208]
[1772493274852,3.32652164,87.76,87.707,5.73587208]
[1772493275043,5.57235061,87.764,87.711,5.73587208]
[1772493275243,5.57235061,87.749,87.7,3.32652164]
[1772493275443,1.98394034,87.785,87.68,14.07924344]
[1772493275444,5.57235061,87.739,87.685,5.73587208]
[1772493275854,5.57235061,87.739,87.69,3.32652164]
[1772493276053,5.57235061,87.739,87.691,5.73587208]
[1772493277351,5.57235061,87.739,87.7,10.261]
[1772493277747,5.57235061,87.739,87.691,5.73587208]
[1772493278256,10.257,87.738,87.699,10.262]
[1772493278444,10.257,87.738,87.691,5.73587208]
[1772493279252,10.258,87.73,87.692,5.73587208]
[1772493279951,10.257,87.737,87.692,5.73587208]
[1772493280547,5.57235061,87.739,87.7,10.261]
[1772493282155,10.257,87.738,87.694,5.73587208]
[1772493282553,159.685,87.67,87.566,14.81153526]
[1772493282754,34.18,87.684,87.55,3.32652164]
[1772493282949,3.32652164,87.63,87.561,67.89806917]
[1772493283153,5.13101628,87.662,87.571,67.89487439]
[1772493283452,3.32652164,87.58,87.523,1.98683437]
[1772493283652,3.32652164,87.56,87.49,3.32652164]
[1772493283853,10.86200885,87.559,87.5,3.32652164]
[1772493284050,10.86200885,87.558,87.52,3.32652164]
[1772493284352,10.86200885,87.578,87.52,3.32652164]
[1772493284550,10.276,87.575,87.5,8.9452298]
[1772493284852,10.86200885,87.574,87.5,8.9452298]
[1772493285053,10.86200885,87.573,87.5,8.9452298]
[1772493285253,10.86200885,87.572,87.5,8.9452298]
[1772493285558,10.86200885,87.593,87.501,59.1764831]
[1772493285757,10.86200885,87.592,87.501,59.1764831]
[1772493285957,10.86200885,87.591,87.501,59.1764831]
[1772493286258,8.9452298,87.6,87.501,59.1764831]
[1772493286259,10.277,87.57,87.501,59.1764831]
[1772493287158,10.278,87.555,87.501,59.1764831]
[1772493287359,8.9452298,87.56,87.467,59.51767689]
[1772493287559,10.283,87.521,87.467,59.51767689]
[1772493290256,8.9452298,87.56,87.467,59.51767689]
[1772493291258,8.9452298,87.56,87.39,59.47422268]
[1772493291259,159.966,87.516,87.39,59.47422268]
[1772493291454,8.9452298,87.46,87.39,59.47422268]
[1772493291657,160.046,87.472,87.36,8.9452298]
[1772493291658,8.9452298,87.44,87.36,8.9452298]
[1772493291857,10.295,87.418,87.34,8.9452298]
[1772493292254,10.295,87.418,87.35,8.9452298]
[1772493292658,10.293,87.434,87.35,8.9452298]
[1772493293758,10.293,87.434,87.351,58.44927714]
[1772493293957,10.291,87.45,87.371,58.44927714]
[1772493295954,10.18388431,87.487,87.215,160.516]
[1772493295955,8.9452298,87.39,87.215,160.516]
[1772493296171,8.9452298,87.37,87.28,8.9452298]
[1772493296561,10.303,87.343,87.28,8.9452298]
[1772493297165,10.303,87.343,87.26,8.9452298]
[1772493297662,8.9452298,87.35,87.26,8.9452298]
[1772493297867,132.9452298,87.38,87.28,8.9452298]
[1772493298063,132.9452298,87.38,87.281,49.28179251]
[1772493298366,10.302,87.359,87.281,49.28179251]
[1772493299763,10.3,87.373,87.286,48.97893716]
[1772493301156,10.3,87.373,87.288,48.90468694]
[1772493301858,8.9452298,87.34,87.268,48.90468694]
[1772493302059,8.9452298,87.34,87.251,48.88844643]
[1772493302370,10.304,87.336,87.271,48.88844643]
[1772493303067,8.9452298,87.32,87.25,48.8848711]
[1772493303263,160.261,87.355,87.25,48.8848711]
[1772493303264,8.9452298,87.3,87.25,48.8848711]
[1772493303462,8.9452298,87.3,87.248,4.387e-05]
[1772493303964,10.309,87.299,87.248,4.387e-05]
[1772493304169,8.9452298,87.33,87.248,4.387e-05]
[1772493305065,10.305,87.329,87.248,48.91388304]
[1772493305266,8.9452298,87.33,87.248,48.91388304]
[1772493305465,8.9452298,87.33,87.251,48.91383917]
[1772493305773,8.9452298,87.35,87.262,48.91383917]
[1772493306473,8.9452298,87.37,87.271,48.83174605]
[1772493307067,8.9452298,87.37,87.277,48.82806312]
[1772493308368,10.302,87.357,87.282,48.81401511]
[1772493308567,8.9452298,87.37,87.282,48.81401511]
[1772493309065,8.9452298,87.37,87.302,59.11834729]
[1772493309971,8.9452298,87.37,87.302,58.98779185]
[1772493310367,10.299,87.379,87.27,8.9452298]
[1772493310368,8.9452298,87.39,87.313,48.81874049]
[1772493310570,1.99265923,87.405,87.313,48.81874049]
[1772493310769,8.9452298,87.41,87.313,48.81874049]
[1772493311073,8.9452298,87.39,87.313,48.81874049]
[1772493312374,10.3,87.373,87.313,48.81874049]
[1772493312782,8.9452298,87.39,87.313,48.81874049]
[1772493313674,8.9452298,87.39,87.325,48.72789605]
[1772493314170,19.2432298,87.39,87.325,59.03289605]
[1772493314371,8.9452298,87.41,87.325,48.72789605]
[1772493315075,10.298,87.391,87.327,48.6719177]
[1772493315275,8.9452298,87.41,87.327,48.6719177]
[1772493315476,8.9452298,87.39,87.327,48.6719177]
[1772493316277,10.3,87.371,87.327,48.6719177]
[1772493316476,8.9452298,87.39,87.327,48.6719177]
[1772493316874,10.3,87.373,87.327,48.6719177]
[1772493318379,10.299,87.383,87.327,48.6719177]
[1772493319478,8.9452298,87.39,87.31,48.69048697]
[1772493319681,8.9452298,87.37,87.31,48.69048697]
[1772493321187,10.302,87.358,87.31,48.69048697]
[1772493322880,10.302,87.358,87.31,48.34688175]
[1772493323481,10.303,87.35,87.31,48.34688175]
[1772493324584,10.304,87.342,87.287,10.31]
[1772493324887,10.304,87.342,87.287,58.82399511]
[1772493326189,10.304,87.342,87.295,48.50797051]
[1772493326591,8.9452298,87.37,87.295,48.50797051]
[1772493326885,8.9452298,87.37,87.305,48.50797051]
[1772493327489,8.9452298,87.37,87.308,58.81177311]
[1772493328086,10.301,87.363,87.308,58.81177311]
[1772493329087,10.3,87.373,87.319,48.50561626]
[1772493329288,10.15866862,87.397,87.319,48.50561626]
[1772493329495,10.58576759,87.407,87.319,48.50561626]
[1772493329689,10.3,87.374,87.319,48.50561626]
[1772493329993,8.9452298,87.39,87.319,48.50561626]
[1772493330196,10.301,87.367,87.319,58.81161626]
[1772493332091,10.15866862,87.366,87.326,58.81121757]
[1772493332294,10.15866862,87.365,87.326,58.81121757]
[1772493332493,10.15866862,87.364,87.326,58.81121757]
[1772493332694,10.15866862,87.363,87.326,48.50621757]
[1772493332990,10.15866862,87.386,87.326,48.50621757]
[1772493333191,10.15866862,87.385,87.326,48.50621757]
[1772493333389,10.15866862,87.384,87.326,48.50621757]
[1772493333594,10.15866862,87.383,87.326,48.50621757]
[1772493333795,10.15866862,87.382,87.326,48.50621757]
[1772493334095,10.15866862,87.381,87.341,48.50966626]
[1772493334289,10.15866862,87.38,87.341,48.50966626]
[1772493334489,10.15866862,87.379,87.341,48.50966626]
[1772493334691,10.298,87.392,87.341,48.50966626]
[1772493334891,10.17610438,87.391,87.341,48.50966626]
[1772493335098,10.17610438,87.39,87.341,48.50966626]
[1772493335295,10.17610438,87.389,87.344,10.303]
[1772493335603,10.44671442,87.381,87.321,48.50685149]
[1772493335799,20.6228188,87.38,87.321,48.50685149]
[1772493335994,10.17610438,87.379,87.321,48.50685149]
[1772493336194,10.44671442,87.37,87.321,48.50685149]
[1772493336501,10.44671442,87.368,87.321,48.50685149]
[1772493336704,10.17610438,87.367,87.321,48.50685149]
[1772493336902,10.17610438,87.366,87.321,58.81285149]
[1772493337094,10.17610438,87.365,87.321,48.50685149]
[1772493337294,10.17610438,87.364,87.321,48.50685149]
[1772493337497,10.17610438,87.363,87.321,48.50685149]
[1772493337696,10.17610438,87.362,87.321,48.50685149]
[1772493337896,10.17610438,87.361,87.321,48.50685149]
[1772493338096,9.63204988,87.385,87.283,20.621]
[1772493338097,10.17610438,87.36,87.312,10.307]
[1772493338295,10.17610438,87.359,87.312,10.307]
[1772493338495,10.17610438,87.358,87.312,10.307]
[1772493338700,10.17610438,87.357,87.312,10.307]
[1772493338903,10.17610438,87.356,87.312,10.307]
[1772493339105,10.17610438,87.355,87.312,10.307]
[1772493339306,10.17610438,87.354,87.312,10.307]
[1772493339508,10.17610438,87.353,87.312,10.307]
[1772493339805,10.17610438,87.352,87.312,10.307]
[1772493339999,10.302,87.356,87.312,10.307]
[1772493340000,10.17610438,87.351,87.312,10.307]
[1772493340196,10.302,87.356,87.304,58.8378981]
[1772493340197,10.17610438,87.35,87.304,58.8378981]
[1772493340401,10.17610438,87.349,87.304,58.8378981]
[1772493340607,10.302,87.356,87.304,58.8378981]
[1772493340608,10.17610438,87.348,87.304,48.5298981]
[1772493340807,10.17610438,87.347,87.304,48.5298981]
[1772493341106,10.17610438,87.346,87.304,48.5298981]
[1772493341308,10.44671442,87.363,87.304,48.5298981]
[1772493341503,10.44671442,87.379,87.304,48.5298981]
[1772493341708,10.44671442,87.38,87.304,48.5298981]
[1772493342206,10.299,87.38,87.332,10.305]
[1772493342407,10.299,87.38,87.332,53.78154388]
[1772493342603,10.44671442,87.392,87.332,43.47654388]
[1772493342906,10.299,87.383,87.332,43.47654388]
[1772493343708,10.299,87.377,87.332,43.47654388]
[1772493344406,10.44671442,87.392,87.334,10.304]
[1772493344613,10.299,87.385,87.334,10.304]
[1772493344810,10.44671442,87.388,87.332,43.47654388]
[1772493345005,10.44671442,87.392,87.332,43.47654388]
[1772493345207,10.299,87.378,87.334,43.47268709]
[1772493345507,8.98757346,87.39,87.334,43.47268709]
[1772493345713,10.44671442,87.392,87.334,43.47268709]
[1772493345913,10.44671442,87.397,87.334,43.47268709]
[1772493346114,10.44671442,87.402,87.334,43.47268709]
[1772493346309,10.44671442,87.402,87.3,8.98757346]
[1772493346310,10.299,87.384,87.336,43.4748824]
[1772493346510,8.98757346,87.41,87.336,43.4748824]
[1772493346511,10.44671442,87.398,87.336,43.4748824]
[1772493346712,10.44671442,87.388,87.336,43.4748824]
[1772493347016,10.44671442,87.403,87.336,43.4748824]
[1772493347215,10.44671442,87.405,87.336,43.4748824]
[1772493348115,10.44671442,87.407,87.336,43.4748824]
[1772493348417,8.98757346,87.38,87.319,43.33773159]
[1772493348810,10.302,87.354,87.319,43.33773159]
[1772493349813,10.302,87.354,87.309,10.307]
[1772493350014,10.302,87.354,87.233,34.18]
[1772493350015,10.44671442,87.359,87.278,43.33491022]
[1772493350513,10.44671442,87.359,87.204,160.536]
[1772493350514,8.98757346,87.32,87.251,1.99331552]
[1772493350718,10.44671442,87.319,87.23,8.98757346]
[1772493350917,8.98757346,87.32,87.231,1.9940408]
[1772493351122,10.307,87.311,87.262,10.313]
[1772493351624,10.307,87.311,87.23,8.98757346]
[1772493352215,10.308,87.304,87.252,10.314]
[1772493352419,10.308,87.304,87.253,34.20409403]
[1772493352923,10.307,87.313,87.257,34.20409403]
[1772493353517,10.307,87.313,87.258,10.313]
[1772493353820,10.308,87.306,87.259,34.2008819]
[1772493354219,9.2432199,87.315,87.259,34.2008819]
[1772493354423,10.308,87.305,87.259,34.2008819]
[1772493355725,10.307,87.314,87.261,34.31648236]
[1772493355919,9.2432199,87.319,87.261,34.31648236]
[1772493356122,8.98757346,87.32,87.261,34.31648236]
[1772493356730,9.2432199,87.333,87.261,34.31648236]
[1772493356926,9.2432199,87.339,87.261,34.31648236]
[1772493357126,9.2432199,87.338,87.261,34.31648236]
[1772493357426,9.2432199,87.337,87.261,34.31648236]
[1772493357630,9.2432199,87.339,87.261,34.31648236]
[1772493357829,8.98757346,87.34,87.261,34.31648236]
[1772493358427,10.305,87.326,87.272,34.35756995]
[1772493358728,10.304,87.335,87.274,34.35756995]
[1772493359525,10.303,87.344,87.289,34.35521118]
[1772493359722,9.2432199,87.354,87.291,34.35521118]
[1772493360034,9.2432199,87.373,87.291,34.35521118]